bitfinex/quotes_BTCUSD_20241003
["timestamp","ask_amount","ask_price","bid_price","bid_amount"]
[1727966098128,0.330283,60555.0,60542.0,0.330345]
[1727966098129,0.005,60547.0,60546.0,0.165163]
[1727966098363,0.005,60543.0,60542.0,0.495519]
[1727966098592,0.005,60543.0,60542.0,0.32836071]
[1727966098807,0.005,60543.0,60542.0,0.33260506]
[1727966099029,0.005,60543.0,60542.0,0.16743106]
[1727966099264,0.175171,60543.0,60542.0,0.00424435]
[1727966099690,0.170171,60543.0,60542.0,0.00424435]
[1727966099694,0.170171,60543.0,60538.0,0.001634]
[1727966099695,0.005,60539.0,60538.0,0.001634]
[1727966099913,0.011817,60539.0,60538.0,0.166819]
[1727966100393,0.005,60542.0,60538.0,0.16482071]
[1727966100610,0.005,60542.0,60541.0,0.165177]
[1727966101082,0.005,60542.0,60538.0,0.001634]
[1727966101083,0.011817,60539.0,60538.0,0.001634]
[1727966101087,0.011817,60539.0,60538.0,0.008634]
[1727966101088,0.176999,60539.0,60538.0,0.008634]
[1727966101309,0.273699,60539.0,60538.0,0.001634]
[1727966101564,0.268699,60539.0,60538.0,0.015634]
[1727966101819,0.273699,60539.0,60538.0,0.001634]
[1727966102065,1.06731202,60539.0,60538.0,0.001634]
[1727966102284,1.06731202,60539.0,60514.0,0.24872116]
[1727966102285,0.011817,60526.0,60525.0,0.24872116]
[1727966102518,0.01,60526.0,60525.0,0.24872116]
[1727966102735,0.330388,60535.0,60525.0,0.24872116]
[1727966102736,0.005,60531.0,60530.0,0.165207]
[1727966102989,0.005,60531.0,60530.0,0.32839371]
[1727966103514,0.005,60531.0,60530.0,0.42839371]
[1727966103780,0.005,60532.0,60531.0,0.265204]
[1727966104028,0.005,60532.0,60531.0,0.42839071]
[1727966104553,0.165164,60546.0,60531.0,0.42839071]
[1727966104554,0.34222116,60550.0,60535.0,0.1]
[1727966105007,0.34222116,60550.0,60547.0,0.26516]
[1727966105008,0.24872116,60548.0,60547.0,0.26516]
[1727966105247,0.24872116,60548.0,60547.0,0.769567]
[1727966105507,0.25372116,60557.0,60556.0,0.265136]
[1727966106257,0.001917,60562.0,60559.0,0.265128]
[1727966106477,0.001917,60562.0,60559.0,0.86600988]
[1727966106727,0.0001,60562.0,60559.0,0.86600988]
[1727966106966,0.0001,60562.0,60561.0,0.265122]
[1727966107209,0.0001,60562.0,60561.0,0.42830871]
[1727966107505,0.0001,60562.0,60561.0,0.63594571]
[1727966107761,0.0002,60579.0,60572.0,0.1]
[1727966108006,0.24872116,60578.0,60575.0,0.265084]
[1727966108248,0.24872116,60578.0,60575.0,0.46147071]
[1727966108491,0.0002,60579.0,60575.0,0.81329571]
[1727966109217,0.005,60578.0,60575.0,0.42827071]
[1727966109466,0.005,60577.0,60575.0,0.42827071]
[1727966109723,0.005818,60576.0,60575.0,0.26938365]
[1727966109987,0.007635,60576.0,60575.0,0.11829965]
[1727966110227,0.087518,60576.0,60575.0,0.179084]
[1727966110472,0.000818,60576.0,60575.0,0.33256566]
[1727966110722,0.005818,60576.0,60575.0,0.34656566]
[1727966110973,0.005818,60576.0,60575.0,0.36056566]
[1727966111458,0.005818,60576.0,60575.0,0.14629495]
[1727966111702,0.012635,60576.0,60575.0,0.11829495]
[1727966111937,0.012635,60576.0,60575.0,0.29737895]
[1727966112185,0.012635,60576.0,60575.0,0.11829495]
[1727966112452,0.012635,60576.0,60563.0,0.43769517]
[1727966112453,0.165087,60575.0,60558.0,0.43769517]
[1727966112699,0.005,60563.0,60562.0,0.16318671]
[1727966112939,0.005,60563.0,60562.0,0.32830671]
[1727966113199,0.005,60557.0,60556.0,0.495407]
[1727966113455,0.005,60562.0,60556.0,0.495407]
[1727966113456,0.005,60561.0,60560.0,0.165125]
[1727966113696,0.005,60563.0,60562.0,0.16512]
[1727966113936,0.005,60565.0,60564.0,0.165114]
[1727966114167,0.005,60565.0,60564.0,0.32830071]
[1727966114385,0.006817,60565.0,60564.0,0.265114]
[1727966114634,0.005,60570.0,60569.0,0.1651]
[1727966114857,0.005,60572.0,60571.0,0.265095]
[1727966115143,0.005,60575.0,60574.0,0.265087]
[1727966115368,0.000818,60576.0,60575.0,0.265084]
[1727966115599,0.000818,60576.0,60575.0,0.46147071]
[1727966116064,0.000818,60576.0,60575.0,0.66301471]
[1727966116338,0.000818,60576.0,60575.0,0.46147071]
[1727966116827,0.000818,60576.0,60575.0,0.62473571]
[1727966117054,0.000818,60576.0,60575.0,0.63873571]
[1727966117318,0.000818,60576.0,60575.0,0.44227071]
[1727966118271,0.000818,60576.0,60575.0,0.47547071]
[1727966118523,0.000818,60576.0,60575.0,0.48947071]
[1727966118758,0.24872116,60585.0,60575.0,0.48947071]
[1727966118759,0.005,60584.0,60578.0,0.198276]
[1727966119037,0.005,60584.0,60578.0,0.89915788]
[1727966119743,0.24872116,60585.0,60578.0,0.42826271]
[1727966119744,0.005,60581.0,60578.0,0.42826271]
[1727966119962,0.0052,60579.0,60578.0,0.42826271]
[1727966120242,0.0052,60579.0,60578.0,0.87995788]
[1727966120243,0.0002,60579.0,60578.0,0.87995788]
[1727966120449,0.0002,60579.0,60578.0,0.88417325]
[1727966120670,0.0002,60579.0,60578.0,0.91737325]
[1727966122012,0.0002,60579.0,60578.0,0.44647808]
[1727966122234,0.0002,60579.0,60578.0,0.18329137]
[1727966122235,0.0052,60579.0,60578.0,0.18329137]
[1727966122476,0.0102,60579.0,60578.0,0.028]
[1727966122693,0.1025,60579.0,60578.0,0.35626271]
[1727966122911,0.1025,60579.0,60578.0,0.34226271]
[1727966123121,0.0975,60579.0,60578.0,0.35626271]
[1727966123351,0.0002,60579.0,60578.0,0.79395788]
[1727966123599,0.0002,60579.0,60578.0,0.76595788]
[1727966123814,0.0002,60579.0,60578.0,0.87995788]
[1727966124364,0.0002,60579.0,60578.0,0.89395788]
[1727966124820,0.0002,60579.0,60578.0,0.87995788]
[1727966125012,0.0002,60579.0,60578.0,0.89395788]
[1727966125260,0.0002,60579.0,60578.0,0.89915788]
[1727966125479,0.0002,60579.0,60578.0,0.91315788]
[1727966125695,0.0002,60579.0,60578.0,0.92715788]
[1727966126141,0.0052,60579.0,60578.0,0.44226271]
[1727966126345,0.0052,60579.0,60578.0,0.45626271]
[1727966127024,0.007017,60579.0,60578.0,0.45626271]
[1727966127253,0.007017,60579.0,60578.0,0.44226271]
[1727966127460,0.007017,60579.0,60578.0,0.48946271]
[1727966127461,0.0002,60579.0,60578.0,0.48946271]
[1727966127672,0.0002,60579.0,60578.0,0.47546271]
[1727966128185,0.012017,60579.0,60578.0,0.028]
[1727966128423,0.012017,60579.0,60578.0,0.179076]
[1727966128658,0.0102,60579.0,60578.0,0.179076]
[1727966128890,0.0102,60579.0,60578.0,0.165076]
[1727966129129,0.0102,60579.0,60578.0,0.34226271]
[1727966129130,0.0002,60579.0,60578.0,0.34226271]
[1727966129337,0.0102,60579.0,60578.0,0.34226271]
[1727966129574,0.0102,60579.0,60578.0,0.32826271]
[1727966129799,0.0102,60579.0,60578.0,0.44226271]
[1727966130057,0.0102,60579.0,60578.0,1.13747071]
[1727966130058,0.0002,60579.0,60578.0,1.13747071]
[1727966130318,0.000818,60600.0,60578.0,1.13747071]
[1727966130319,0.24872116,60593.0,60592.0,0.265038]
[1727966130579,0.24872116,60593.0,60592.0,1.78255988]
[1727966130840,0.24872116,60605.0,60592.0,1.78255988]
[1727966130841,0.24872116,60605.0,60604.0,0.198205]
[1727966131054,0.06542009,60605.0,60604.0,0.46139171]
[1727966131289,0.000817,60611.0,60608.0,0.264994]
[1727966131507,0.000817,60611.0,60608.0,0.42818071]
[1727966131833,0.000817,60611.0,60608.0,0.45118071]
[1727966131939,0.00911155,60610.0,60609.0,0.164991]
[1727966132212,0.00911155,60610.0,60609.0,1.09590171]
[1727966132440,0.000817,60611.0,60609.0,1.09590171]
[1727966132441,1e-08,60611.0,60610.0,0.287989]
[1727966132660,1e-08,60611.0,60610.0,1.21359471]
[1727966132912,1e-08,60611.0,60610.0,0.42817571]
[1727966133644,1e-08,60611.0,60610.0,0.46137571]
[1727966134367,1e-08,60611.0,60610.0,0.47537571]
[1727966134587,1e-08,60611.0,60610.0,0.42817571]
[1727966135065,0.00500001,60611.0,60610.0,0.44217571]
[1727966135298,0.00500001,60611.0,60610.0,0.34217571]
[1727966135558,0.01181701,60611.0,60610.0,0.014]
[1727966135797,0.011817,60610.0,60609.0,1.0]
[1727966136737,0.176806,60610.0,60609.0,1.0]
[1727966137282,0.005,60595.0,60594.0,0.74381616]
[1727966137533,0.005,60595.0,60594.0,0.90700287]
[1727966137786,0.005,60598.0,60594.0,0.74197087]
[1727966138070,0.005,60598.0,60592.0,0.43769517]
[1727966138071,0.005,60598.0,60597.0,0.165024]
[1727966138419,0.005,60598.0,60597.0,0.42821071]
[1727966138639,0.005,60602.0,60601.0,0.265013]
[1727966138856,0.01,60602.0,60601.0,0.42819971]
[1727966139073,0.005,60602.0,60601.0,0.42819971]
[1727966139294,0.01,60602.0,60601.0,0.42819971]
[1727966139525,0.005,60608.0,60607.0,0.164997]
[1727966139757,0.005,60608.0,60607.0,0.42818371]
[1727966140451,1e-08,60611.0,60610.0,0.164989]
[1727966140702,1e-08,60611.0,60610.0,0.86587088]
[1727966140946,0.0002,60619.0,60618.0,0.264967]
[1727966141414,0.0002,60619.0,60618.0,0.298167]
[1727966141657,0.000817,60621.0,60620.0,0.298162]
[1727966141859,0.000817,60621.0,60620.0,0.615324]
[1727966142072,0.000817,60621.0,60620.0,0.456963]
[1727966142539,0.006817,60636.0,60629.0,0.164937]
[1727966142769,0.24953816,60630.0,60629.0,0.86581888]
[1727966143331,0.000817,60630.0,60629.0,0.86581888]
[1727966143546,0.005817,60630.0,60629.0,0.42812371]
[1727966144274,0.005817,60630.0,60629.0,0.44212371]
[1727966144492,0.088634,60630.0,60629.0,0.278937]
[1727966144782,0.007634,60630.0,60629.0,0.44212371]
[1727966145073,0.000817,60630.0,60629.0,0.44212371]
[1727966145307,0.000817,60630.0,60629.0,0.44643217]
[1727966145308,0.005817,60630.0,60629.0,0.44643217]
[1727966145787,0.007634,60630.0,60629.0,0.29724546]
[1727966146295,0.177568,60630.0,60629.0,0.014]
[1727966146547,0.177568,60630.0,60611.0,0.164986]
[1727966146548,0.005,60612.0,60611.0,0.164986]
[1727966147096,0.005,60612.0,60611.0,0.16934196]
[1727966147323,0.01,60617.0,60616.0,0.164972]
[1727966147570,0.005,60617.0,60616.0,0.164972]
[1727966147807,0.005,60619.0,60615.0,0.32995]
[1727966147808,0.01,60619.0,60618.0,0.164967]
[1727966148050,0.011817,60619.0,60618.0,0.164967]
[1727966148289,0.011817,60619.0,60618.0,0.264967]
[1727966148546,0.329858,60633.0,60618.0,0.264967]
[1727966148547,0.005,60622.0,60619.0,0.329929]
[1727966148793,0.001817,60625.0,60619.0,0.329929]
[1727966148794,0.005,60625.0,60624.0,0.164951]
[1727966149056,0.005,60625.0,60624.0,0.264951]
[1727966149324,0.011817,60625.0,60624.0,0.1]
[1727966149564,0.011817,60625.0,60624.0,0.264951]
[1727966149822,0.011817,60625.0,60624.0,0.1]
[1727966150058,0.005,60623.0,60622.0,0.264956]
[1727966150316,0.01,60623.0,60622.0,0.264956]
[1727966150559,0.011817,60623.0,60622.0,0.26927699]
[1727966150812,0.005,60623.0,60622.0,0.26927699]
[1727966151064,0.01,60623.0,60622.0,0.26927699]
[1727966151297,0.011817,60623.0,60622.0,0.26927699]
[1727966151549,0.011817,60623.0,60622.0,0.4324637]
[1727966151797,0.012817,60623.0,60622.0,0.4454637]
[1727966152047,0.011817,60623.0,60622.0,0.4324637]
[1727966152292,0.006,60623.0,60622.0,0.4454637]
[1727966152795,0.006,60623.0,60622.0,0.4464637]
[1727966153014,0.011,60623.0,60622.0,0.4464637]
[1727966153236,0.012817,60623.0,60622.0,0.4324637]
[1727966153727,0.012817,60623.0,60622.0,0.28327699]
[1727966153939,0.013817,60623.0,60622.0,0.29627699]
[1727966154156,0.013817,60623.0,60622.0,0.4594637]
[1727966154402,0.013817,60623.0,60622.0,0.4610957]
[1727966154672,0.013817,60623.0,60622.0,0.4470957]
[1727966155166,0.012,60623.0,60622.0,0.4470957]
[1727966156104,0.176953,60623.0,60622.0,0.03295299]
[1727966156363,0.176953,60623.0,60622.0,0.028632]
[1727966156837,0.19430047,60623.0,60622.0,0.028632]
[1727966157322,0.19411747,60623.0,60622.0,0.001632]
[1727966157580,0.19411747,60623.0,60622.0,0.027632]
[1727966157823,0.19411747,60623.0,60601.0,0.41373416]
[1727966157824,0.005,60602.0,60601.0,0.41373416]
[1727966158292,0.005,60602.0,60601.0,0.16930342]
[1727966158788,0.005,60608.0,60601.0,0.16930342]
[1727966158789,0.006817,60605.0,60604.0,0.165005]
[1727966159060,0.006817,60605.0,60604.0,0.265005]
[1727966159342,0.006817,60605.0,60601.0,0.00429042]
[1727966159343,0.005,60602.0,60601.0,0.00429042]
[1727966159585,0.011817,60602.0,60601.0,0.16930342]
[1727966159845,0.011817,60602.0,60601.0,0.165013]
[1727966160090,0.01,60602.0,60601.0,0.165013]
[1727966160348,0.01,60602.0,60601.0,0.32819971]
[1727966160601,0.011,60602.0,60601.0,0.32819971]
[1727966160842,0.011,60602.0,60601.0,0.48265819]
[1727966161088,0.012,60602.0,60601.0,0.44019971]
[1727966161343,0.01,60602.0,60601.0,0.1]
[1727966161598,0.006,60602.0,60601.0,0.265013]
[1727966161847,0.011,60602.0,60601.0,0.42819971]
[1727966162577,0.005,60602.0,60601.0,0.42819971]
[1727966162814,0.005,60603.0,60602.0,0.265011]
[1727966163060,0.005,60603.0,60602.0,0.42819771]
[1727966163298,0.01,60603.0,60602.0,0.1]
[1727966163569,0.01,60603.0,60601.0,0.001]
[1727966163570,0.257511,60602.0,60601.0,0.001]
[1727966163780,0.170021,60598.0,60597.0,0.001632]
[1727966164038,0.19393182,60598.0,60597.0,0.001632]
[1727966164273,0.19393182,60598.0,60574.0,0.61286567]
[1727966164274,0.005,60577.0,60571.0,0.04872969]
[1727966164532,0.0825,60597.0,60568.0,0.42766339]
[1727966164533,0.005,60575.0,60574.0,0.165087]
[1727966164791,0.005,60575.0,60574.0,0.495258]
[1727966165255,0.005,60575.0,60574.0,0.53771648]
[1727966165489,0.01,60574.0,60573.0,0.00430497]
[1727966165724,0.0799,60577.0,60562.0,0.067788]
[1727966165725,0.005,60563.0,60562.0,0.166754]
[1727966165942,0.005,60566.0,60565.0,0.165111]
[1727966166206,0.0809,60577.0,60565.0,0.16318671]
[1727966166207,0.01,60570.0,60565.0,0.16318671]
[1727966166456,0.005,60575.0,60574.0,0.165087]
[1727966166713,0.01,60575.0,60574.0,0.165087]
[1727966166954,0.24872116,60576.0,60565.0,0.330223]
[1727966166955,0.005,60566.0,60565.0,0.330223]
[1727966167170,0.24872116,60576.0,60562.0,0.166754]
[1727966167171,0.005,60563.0,60562.0,0.166754]
[1727966167393,0.005,60563.0,60562.0,0.32994071]
[1727966167640,0.005,60563.0,60562.0,0.3342902]
[1727966167854,0.01,60563.0,60562.0,0.00598349]
[1727966168117,0.01,60563.0,60562.0,0.17110349]
[1727966168586,0.011,60563.0,60562.0,0.17110349]
[1727966168845,0.01,60563.0,60562.0,0.17110349]
[1727966169076,0.01,60563.0,60562.0,0.00598349]
[1727966169297,0.01,60563.0,60562.0,0.001634]
[1727966169745,0.01,60563.0,60562.0,0.34194071]
[1727966169746,0.006,60563.0,60562.0,0.34194071]
[1727966170024,0.006,60563.0,60562.0,0.178754]
[1727966170025,0.011,60563.0,60562.0,0.178754]
[1727966170245,0.011,60563.0,60562.0,0.166754]
[1727966170473,0.01,60563.0,60562.0,0.171754]
[1727966170698,0.012817,60563.0,60562.0,0.171754]
[1727966170931,0.011817,60563.0,60562.0,0.271754]
[1727966171141,0.011817,60563.0,60562.0,0.001634]
[1727966171380,0.011817,60563.0,60562.0,0.013634]
[1727966171381,0.013817,60563.0,60562.0,0.013634]
[1727966171597,0.012817,60563.0,60562.0,0.013634]
[1727966171830,0.013817,60563.0,60562.0,0.178754]
[1727966172540,0.013817,60563.0,60562.0,0.013634]
[1727966172797,0.012817,60563.0,60562.0,0.001634]
[1727966173045,0.013817,60563.0,60562.0,0.171754]
[1727966173290,0.012817,60563.0,60562.0,0.33494071]
[1727966173511,0.007817,60563.0,60562.0,0.166754]
[1727966173761,0.011817,60563.0,60562.0,0.166754]
[1727966174226,0.013817,60563.0,60562.0,0.177754]
[1727966174500,0.002,60563.0,60562.0,0.44519446]
[1727966174707,0.003,60563.0,60562.0,0.44519446]
[1727966175200,0.003,60563.0,60562.0,0.81184946]
[1727966175689,0.002,60563.0,60562.0,0.49039446]
[1727966175896,0.003,60563.0,60562.0,0.47939446]
[1727966176149,0.002,60563.0,60562.0,0.48741659]
[1727966176431,0.001,60563.0,60562.0,0.47541659]
[1727966176674,0.005,60567.0,60566.0,0.298309]
[1727966176904,0.005,60567.0,60566.0,0.46149571]
[1727966178051,0.331057,60596.0,60574.0,0.165087]
[1727966178052,0.005,60575.0,60574.0,0.165087]
[1727966178320,0.011817,60575.0,60574.0,0.42827371]
[1727966179486,0.011817,60575.0,60574.0,0.26931562]
[1727966179701,0.012817,60575.0,60574.0,0.27131562]
[1727966179929,0.013817,60575.0,60574.0,0.28331562]
[1727966180660,0.002,60575.0,60574.0,0.52941594]
[1727966181098,0.002,60575.0,60574.0,0.47970233]
[1727966181576,0.003817,60575.0,60574.0,0.47970233]
[1727966181801,0.007,60575.0,60574.0,0.47970233]
[1727966182049,0.007817,60575.0,60574.0,0.46770233]
[1727966182293,0.012817,60575.0,60574.0,0.18531562]
[1727966182537,0.011817,60575.0,60574.0,0.19146033]
[1727966182837,0.012817,60575.0,60574.0,0.19146033]
[1727966183074,0.011817,60575.0,60574.0,0.19146033]
[1727966183313,0.011817,60575.0,60574.0,0.20546033]
[1727966183566,0.012817,60575.0,60574.0,0.02214471]
[1727966183804,0.012817,60575.0,60574.0,0.179087]
[1727966184057,0.012817,60575.0,60574.0,0.028]
[1727966184295,0.177901,60575.0,60574.0,0.028]
[1727966184763,0.012817,60575.0,60574.0,0.028]
[1727966185007,0.177901,60575.0,60574.0,0.028]
[1727966185251,0.43758333,60575.0,60574.0,0.028]
[1727966185498,0.43758333,60575.0,60566.0,0.001632]
[1727966185499,0.257023,60567.0,60566.0,0.001632]
[1727966185752,0.255023,60567.0,60566.0,0.001632]
[1727966185996,0.27235937,60567.0,60566.0,0.001632]
[1727966186935,0.27235937,60567.0,60566.0,0.008632]
[1727966187152,0.27935937,60567.0,60566.0,0.009632]
[1727966187403,0.43554608,60567.0,60566.0,0.008632]
[1727966187654,0.43554608,60567.0,60552.0,0.330289]
[1727966187655,0.254375,60548.0,60542.0,0.24872116]
[1727966187930,0.53798009,60548.0,60542.0,0.24872116]
[1727966188169,0.10655337,60548.0,60542.0,0.24872116]
[1727966188405,0.10655337,60548.0,60547.0,0.166792]
[1727966188640,0.10655337,60548.0,60547.0,0.0096287]
[1727966188879,0.10655337,60548.0,60547.0,0.1747887]
[1727966189117,0.011817,60548.0,60547.0,0.1747887]
[1727966189844,0.01,60548.0,60547.0,0.43797541]
[1727966190105,0.005,60550.0,60549.0,0.265155]
[1727966190332,0.005,60550.0,60549.0,0.7119468]
[1727966190846,0.005,60550.0,60549.0,0.43633622]
[1727966191086,0.006817,60550.0,60549.0,0.43633622]
[1727966191326,0.011817,60550.0,60549.0,0.00799451]
[1727966191579,0.011817,60550.0,60547.0,0.001632]
[1727966191580,0.000817,60548.0,60547.0,0.001632]
[1727966191826,0.171975,60548.0,60547.0,0.001632]
[1727966192096,0.176975,60548.0,60547.0,0.0096287]
[1727966192296,0.35750783,60548.0,60547.0,0.001632]
[1727966192775,0.35850783,60548.0,60547.0,0.001632]
[1727966193014,0.46059909,60541.0,60540.0,0.001632]
[1727966193231,0.46059909,60541.0,60530.0,0.24872116]
[1727966193232,0.172021,60531.0,60530.0,0.24872116]
[1727966193456,0.170229,60522.0,60509.0,0.330524]
[1727966193776,0.170229,60522.0,60505.0,0.001632]
[1727966193777,0.01,60514.0,60505.0,0.001632]
[1727966194044,0.01,60514.0,60513.0,0.166885]
[1727966194045,0.011817,60514.0,60513.0,0.166885]
[1727966194257,0.011817,60514.0,60513.0,0.001632]
[1727966194938,0.006817,60516.0,60515.0,0.165248]
[1727966195179,0.006817,60516.0,60515.0,0.32843471]
[1727966195404,0.006817,60516.0,60515.0,0.165248]
[1727966195405,0.011817,60516.0,60515.0,0.165248]
[1727966195782,0.24872116,60524.0,60513.0,0.101632]
[1727966195783,0.011817,60514.0,60513.0,0.101632]
[1727966196026,0.256968,60514.0,60513.0,0.001632]
[1727966196258,0.092717,60514.0,60513.0,0.166885]
[1727966196505,0.011817,60514.0,60513.0,0.166885]
[1727966197461,0.011817,60514.0,60513.0,0.47832812]
[1727966197462,0.01,60514.0,60513.0,0.47832812]
[1727966197703,0.011817,60514.0,60513.0,0.43007171]
[1727966197927,0.011817,60514.0,60513.0,0.266885]
[1727966198430,0.012817,60514.0,60513.0,0.266885]
[1727966198667,0.011817,60514.0,60513.0,0.266885]
[1727966198892,0.012817,60514.0,60513.0,0.2711458]
[1727966199344,0.012817,60514.0,60513.0,0.2751458]
[1727966199345,0.013817,60514.0,60513.0,0.2751458]
[1727966199585,0.013817,60514.0,60513.0,0.0098928]
[1727966199817,0.011817,60514.0,60513.0,0.2711458]
[1727966200067,0.013817,60514.0,60513.0,0.2751458]
[1727966200515,0.012817,60514.0,60513.0,0.2711458]
[1727966201047,0.013817,60514.0,60513.0,0.2751458]
[1727966201307,0.013817,60514.0,60513.0,0.005632]
[1727966201563,0.013817,60514.0,60513.0,0.170885]
[1727966201810,0.012817,60514.0,60511.0,0.3347402]
[1727966202086,0.006817,60506.0,60504.0,0.330552]
[1727966202332,0.006817,60506.0,60505.0,0.166907]
[1727966202564,0.011817,60506.0,60505.0,0.27120326]
[1727966202799,0.011817,60506.0,60505.0,0.266907]
[1727966203025,0.011817,60506.0,60505.0,0.43009371]
[1727966203281,0.011817,60506.0,60505.0,0.266907]
[1727966203526,0.012817,60506.0,60505.0,0.276907]
[1727966203779,0.012817,60506.0,60505.0,0.266907]
[1727966203780,0.011817,60506.0,60505.0,0.266907]
[1727966204036,0.012817,60506.0,60505.0,0.105632]
[1727966204287,0.012817,60506.0,60505.0,0.005632]
[1727966204288,0.47303671,60506.0,60505.0,0.005632]
[1727966205278,0.1771,60502.0,60501.0,0.001634]
[1727966205504,0.011817,60502.0,60501.0,0.001634]
[1727966206445,0.011817,60502.0,60501.0,0.01035568]
[1727966207158,0.25637792,60502.0,60501.0,0.01035568]
[1727966207394,0.42056463,60502.0,60501.0,0.001634]
[1727966207611,0.1811,60502.0,60501.0,0.001634]
[1727966208543,0.007817,60502.0,60501.0,0.16692]
[1727966209037,0.0917,60518.0,60501.0,0.16692]
[1727966209038,0.01,60503.0,60502.0,0.265283]
[1727966209552,0.005,60505.0,60504.0,0.165278]
[1727966209761,0.001817,60513.0,60506.0,0.1]
[1727966209762,0.005,60507.0,60506.0,0.1]
[1727966209995,0.01,60508.0,60507.0,0.26527]
[1727966210220,0.01,60508.0,60507.0,0.42845671]
[1727966210699,0.01,60508.0,60507.0,0.43715053]
[1727966211232,0.005,60508.0,60507.0,0.43715053]
[1727966211471,0.01,60509.0,60508.0,0.265267]
[1727966211715,0.01,60509.0,60508.0,0.42845371]
[1727966211937,0.01,60509.0,60508.0,0.43702686]
[1727966212889,0.177,60526.0,60508.0,0.43702686]
[1727966212890,0.005,60514.0,60512.0,0.165256]
[1727966213109,0.005,60514.0,60513.0,0.42843971]
[1727966213350,0.006817,60514.0,60513.0,0.437004]
[1727966213831,0.011817,60514.0,60513.0,0.27381729]
[1727966214343,0.005,60515.0,60514.0,0.165251]
[1727966214587,0.005,60515.0,60514.0,0.42843771]
[1727966214887,0.005,60515.0,60514.0,0.43690722]
[1727966215110,0.01,60515.0,60514.0,0.27372051]
[1727966215640,0.03887082,60515.0,60514.0,0.01046951]
[1727966215863,0.20311882,60515.0,60514.0,0.00846951]
[1727966216104,0.20311882,60515.0,60501.0,0.16692]
[1727966216105,0.005,60502.0,60501.0,0.16692]
[1727966216329,0.006817,60502.0,60501.0,0.33010671]
[1727966216520,0.006817,60502.0,60501.0,0.33853599]
[1727966216755,0.005,60502.0,60501.0,0.33853599]
[1727966217001,0.005,60502.0,60501.0,0.43853599]
[1727966217264,0.006,60502.0,60501.0,0.43853599]
[1727966217491,0.001,60502.0,60501.0,0.44273366]
[1727966217714,0.001,60502.0,60501.0,2.28338966]
[1727966217955,0.001,60502.0,60501.0,0.72491266]
[1727966218183,0.24872116,60512.0,60503.0,0.330558]
[1727966218424,0.24872116,60512.0,60511.0,0.265259]
[1727966218425,0.25372116,60512.0,60511.0,0.265259]
[1727966218650,0.25372116,60512.0,60511.0,0.42844571]
[1727966218889,0.25372116,60512.0,60511.0,0.43686402]
[1727966219126,0.005,60512.0,60511.0,0.43686402]
[1727966219622,0.006,60512.0,60511.0,0.43686402]
[1727966219859,0.007,60512.0,60511.0,0.43886402]
[1727966220075,0.006,60512.0,60511.0,0.43886402]
[1727966220307,0.006,60512.0,60511.0,0.27567731]
[1727966220308,0.011,60512.0,60511.0,0.27567731]
[1727966220531,0.012,60512.0,60511.0,0.27567731]
[1727966220996,0.002,60512.0,60511.0,0.43886402]
[1727966221597,0.005818,60515.0,60514.0,0.265251]
[1727966221598,0.000818,60515.0,60514.0,0.265251]
[1727966221843,0.32952116,60535.0,60527.0,0.265215]
[1727966221844,0.005,60532.0,60527.0,0.265215]
[1727966222063,0.25872116,60528.0,60527.0,0.265215]
[1727966222295,0.26053816,60528.0,60527.0,0.265215]
[1727966222548,0.01,60528.0,60527.0,0.27365047]
[1727966223752,0.011,60528.0,60527.0,0.00843547]
[1727966224004,0.27169744,60528.0,60527.0,0.00843547]
[1727966224269,0.005,60508.0,60507.0,0.16527]
[1727966224492,0.35110749,60528.0,60501.0,0.16692]
[1727966224493,0.006817,60502.0,60501.0,0.16692]
[1727966224982,0.011817,60502.0,60501.0,0.16692]
[1727966225478,0.011817,60502.0,60501.0,0.001634]
[1727966225727,0.19434486,60502.0,60501.0,0.001634]
[1727966226201,0.19635504,60502.0,60501.0,0.017634]
[1727966226431,0.28210134,60502.0,60501.0,0.017634]
[1727966226649,0.19635504,60502.0,60501.0,0.017634]
[1727966226884,0.19735504,60502.0,60501.0,0.013634]
[1727966227106,0.35954175,60502.0,60501.0,0.001634]
[1727966227370,0.56070673,60502.0,60501.0,0.005634]
[1727966227639,0.56070673,60502.0,60486.0,0.001632]
[1727966227640,0.011817,60487.0,60486.0,0.001632]
[1727966228086,0.02907204,60487.0,60486.0,0.21119811]
[1727966228337,0.02907204,60487.0,60486.0,0.166959]
[1727966228582,0.011817,60487.0,60486.0,0.166959]
[1727966229330,0.006,60487.0,60486.0,0.48777157]
[1727966229557,0.012817,60487.0,60486.0,0.43914571]
[1727966229805,0.012817,60487.0,60486.0,0.43314571]
[1727966230058,0.012817,60487.0,60486.0,0.44314571]
[1727966230278,0.007,60487.0,60486.0,0.54339743]
[1727966230531,0.005,60490.0,60486.0,0.39939636]
[1727966230756,0.005,60490.0,60489.0,0.33855181]
[1727966230980,0.005,60493.0,60492.0,0.165311]
[1727966231204,0.005,60494.0,60493.0,0.265308]
[1727966231459,0.003724,60497.0,60496.0,0.2653]
[1727966231692,0.008724,60497.0,60496.0,0.50173038]
[1727966231925,0.008724,60497.0,60496.0,0.52614494]
[1727966232179,0.003724,60502.0,60500.0,0.1]
[1727966232414,0.000818,60505.0,60504.0,0.265278]
[1727966232415,0.009542,60505.0,60504.0,0.265278]
[1727966232882,0.000818,60505.0,60504.0,0.265278]
[1727966233354,0.000818,60505.0,60504.0,0.3876413]
[1727966233598,0.000818,60505.0,60504.0,0.3876354]
[1727966233844,0.005542,60505.0,60504.0,0.50185705]
[1727966234105,0.005542,60505.0,60504.0,0.48159071]
[1727966234575,0.005542,60505.0,60504.0,0.43266396]
[1727966234801,0.005542,60505.0,60504.0,0.53049813]
[1727966235035,0.005542,60505.0,60504.0,0.43266396]